fUST/lending_fUST_20260601
["ID","MTS","AMOUNT","RATE_DAILY","PERIOD"]
[423636063,1780267846000,-177.33604,0.00017534,2]
[423636054,1780267846000,-692.098468,0.00017534,2]
[423636067,1780267846000,-177.33604,0.00017534,2]
[423636061,1780267846000,-692.04,0.00017534,2]
[423636086,1780267846000,-2118.27,0.00017534,2]
[423636089,1780267846000,-500.0,0.00017534,2]
[423636087,1780267846000,-500.0,0.00017534,2]
[423636078,1780267846000,-669.27,0.00017534,2]
[423636084,1780267846000,-659.02,0.00017534,2]
[423636072,1780267846000,-500.0,0.00017534,2]
[423636073,1780267846000,-500.0,0.00017534,2]
[423636070,1780267846000,-177.33604,0.00017534,2]
[423636075,1780267846000,-698.5,0.00017534,2]
[423636082,1780267846000,-500.0,0.00017534,2]
[423636077,1780267846000,-500.0,0.00017534,2]
[423636080,1780267846000,-915.19,0.00017534,2]
[423635985,1780267846000,-319.444823,0.0001726,2]
[423636091,1780267846000,-637.9,0.00017534,2]
[423636068,1780267846000,-500.0,0.00017534,2]
[423636028,1780267846000,-500.0,0.0001726,2]
[423636093,1780267846000,-10390.67,0.00017534,2]
[423636038,1780267846000,-1529.83429221,0.00017389,89]
[423636042,1780267846000,-500.0,0.00017534,2]
[423635994,1780267846000,-692.04,0.0001726,2]
[423635977,1780267846000,-569.886,0.0001726,2]
[423635973,1780267846000,-1152.0,0.00017225,2]
[423635982,1780267846000,-319.444823,0.0001726,2]
[423635978,1780267846000,-500.0,0.0001726,2]
[423635996,1780267846000,-500.0,0.0001726,2]
[423635999,1780267846000,-500.0,0.0001726,2]
[423636001,1780267846000,-698.5,0.0001726,2]
[423636004,1780267846000,-669.27,0.0001726,2]
[423636013,1780267846000,-2118.27,0.0001726,2]
[423636019,1780267846000,-590.47,0.0001726,2]
[423636010,1780267846000,-659.02,0.0001726,2]
[423636008,1780267846000,-500.0,0.0001726,2]
[423635990,1780267846000,-500.0,0.0001726,2]
[423636015,1780267846000,-500.0,0.0001726,2]
[423635997,1780267846000,-500.0,0.0001726,2]
[423636036,1780267846000,-3677.0,0.00017355,2]
[423636024,1780267846000,-10390.67,0.0001726,2]
[423636030,1780267846000,-500.0,0.0001726,2]
[423636026,1780267846000,-502.52,0.0001726,2]
[423636021,1780267846000,-366.2,0.0001726,2]
[423636039,1780267846000,-151.0,0.00017389,2]
[423636034,1780267846000,-220.30493041,0.00017338,2]
[423636023,1780267846000,-637.9,0.0001726,2]
[423636012,1780267846000,-460.98237694,0.0001726,2]
[423636003,1780267846000,-500.0,0.0001726,2]
[423636006,1780267846000,-915.19,0.0001726,2]
[423636017,1780267846000,-500.0,0.0001726,2]
[423636032,1780267846000,-2209.54,0.0001726,2]
[423636179,1780267847000,-500.0,0.00018082,2]
[423636176,1780267847000,-301.10485739,0.00018082,2]
[423636163,1780267847000,-266.2,0.00017808,2]
[423636166,1780267847000,-637.9,0.00017808,2]
[423636158,1780267847000,-659.02,0.00017808,2]
[423636161,1780267847000,-2111.19266935,0.00017808,2]
[423636153,1780267847000,-669.27,0.00017808,2]
[423636159,1780267847000,-7.07733065,0.00017808,2]
[423636154,1780267847000,-915.19,0.00017808,2]
[423636178,1780267847000,-1167.41,0.00018082,2]
[423636170,1780267847000,-502.52,0.00017808,2]
[423636165,1780267847000,-500.0,0.00017808,2]
[423636190,1780267847000,-500.0,0.00018082,2]
[423636183,1780267847000,-692.04,0.00018082,2]
[423636184,1780267847000,-500.0,0.00018082,2]
[423636175,1780267847000,-2209.54,0.00017808,2]
[423636186,1780267847000,-500.0,0.00018082,2]
[423636191,1780267847000,-669.27,0.00018082,2]
[423636192,1780267847000,-915.19,0.00018082,2]
[423636193,1780267847000,-500.0,0.00018082,2]
[423636189,1780267847000,-698.5,0.00018082,2]
[423636187,1780267847000,-500.0,0.00018082,2]
[423636194,1780267847000,-659.02,0.00018082,2]
[423636196,1780267847000,-151.0,0.00018082,2]
[423636195,1780267847000,-2118.27,0.00018082,2]
[423636168,1780267847000,-10390.67,0.00017808,2]
[423636181,1780267847000,-1005.45,0.00018082,2]
[423636171,1780267847000,-500.0,0.00017808,2]
[423636123,1780267847000,-190.30780903,0.00017808,2]
[423636173,1780267847000,-500.0,0.00017808,2]
[423636211,1780267847000,-2209.54,0.00018082,2]
[423636094,1780267847000,-502.52,0.00017534,2]
[423636100,1780267847000,-2110.92326777,0.00017534,2]
[423636096,1780267847000,-500.0,0.00017534,2]
[423636098,1780267847000,-500.0,0.00017534,2]
[423636109,1780267847000,-98.61673223,0.00017534,2]
[423636119,1780267847000,-271.084196,0.00017808,2]
[423636110,1780267847000,-605.28,0.00017808,2]
[423636121,1780267847000,-80.77638697,0.00017808,2]
[423636116,1780267847000,-122.94477897,0.00017808,2]
[423636125,1780267847000,-271.084196,0.00017808,2]
[423636126,1780267847000,-151.0,0.00017808,2]
[423636156,1780267847000,-500.0,0.00017808,2]
[423636114,1780267847000,-151.0,0.00017808,2]
[423636128,1780267847000,-151.0,0.00017808,2]
[423636130,1780267847000,-151.0,0.00017808,2]
[423636143,1780267847000,-500.0,0.00017808,2]
[423636145,1780267847000,-500.0,0.00017808,2]
[423636132,1780267847000,-249.399325,0.00017808,2]
[423636142,1780267847000,-692.04,0.00017808,2]
[423636140,1780267847000,-1005.45,0.00017808,2]
[423636138,1780267847000,-500.0,0.00017808,2]
[423636147,1780267847000,-500.0,0.00017808,2]
[423636149,1780267847000,-698.5,0.00017808,2]
[423636151,1780267847000,-500.0,0.00017808,2]
[423636133,1780267847000,-1167.41,0.00017808,2]
[423636112,1780267847000,-500.0,0.00017808,2]
[423636198,1780267847000,-151.0,0.00018082,2]
[423636118,1780267847000,-148.13941703,0.00017808,2]
[423636205,1780267847000,-502.52,0.00018082,2]
[423636259,1780267847000,-1540.4056623,0.0001846,101]
[423636265,1780267847000,-1005.45,0.0001863,2]
[423636274,1780267847000,-669.27,0.0001863,2]
[423636272,1780267847000,-449.72,0.0001863,2]
[423636278,1780267847000,-500.0,0.0001863,2]
[423636276,1780267847000,-915.19,0.0001863,2]
[423636267,1780267847000,-692.04,0.0001863,2]
[423636279,1780267847000,-659.02,0.0001863,2]
[423636268,1780267847000,-500.0,0.0001863,2]
[423636271,1780267847000,-698.5,0.0001863,2]
[423636283,1780267847000,-380.28,0.0001863,2]
[423636286,1780267847000,-637.9,0.0001863,2]
[423636257,1780267847000,-2209.54,0.00018356,2]
[423636282,1780267847000,-2118.27,0.0001863,2]
[423636304,1780267847000,-500.0,0.00018904,2]
[423636299,1780267847000,-1167.41,0.00018904,2]
[423636307,1780267847000,-669.27,0.00018904,2]
[423636302,1780267847000,-692.04,0.00018904,2]
[423636309,1780267847000,-915.19,0.00018904,2]
[423636291,1780267847000,-502.52,0.0001863,2]
[423636289,1780267847000,-10390.67,0.0001863,2]
[423636297,1780267847000,-794.0,0.000189,2]
[423636300,1780267847000,-1005.45,0.00018904,2]
[423636306,1780267847000,-698.5,0.00018904,2]
[423636311,1780267847000,-500.0,0.00018904,2]
[423636293,1780267847000,-2209.54,0.0001863,2]
[423636295,1780267847000,-469.04700885,0.00018801,2]
[423636252,1780267847000,-502.52,0.00018356,2]
[423636199,1780267847000,-500.0,0.00018082,2]
[423636263,1780267847000,-1167.41,0.0001863,2]
[423636261,1780267847000,-1000.0,0.00018593,2]
[423636207,1780267847000,-500.0,0.00018082,2]
[423636203,1780267847000,-10390.67,0.00018082,2]
[423636201,1780267847000,-637.9,0.00018082,2]
[423636214,1780267847000,-162.38071901,0.00018253,2]
[423636216,1780267847000,-537.6845,0.00018253,2]
[423636218,1780267847000,-251.524923,0.00018356,2]
[423636219,1780267847000,-151.0,0.00018356,2]
[423636229,1780267847000,-500.0,0.00018356,2]
[423636223,1780267847000,-360.99017648,0.00018356,2]
[423636231,1780267847000,-342.92,0.00018356,2]
[423636236,1780267847000,-500.0,0.00018356,2]
[423636225,1780267847000,-1005.45,0.00018356,2]
[423636209,1780267847000,-500.0,0.00018082,2]
[423636235,1780267847000,-698.5,0.00018356,2]
[423636255,1780267847000,-639.73756654,0.00018356,2]
[423636248,1780267847000,-637.9,0.00018356,2]
[423636253,1780267847000,-188.12,0.00018356,2]
[423636247,1780267847000,-500.0,0.00018356,2]
[423636233,1780267847000,-238.96,0.00018356,2]
[423636245,1780267847000,-2118.27,0.00018356,2]
[423636250,1780267847000,-10390.67,0.00018356,2]
[423636240,1780267847000,-915.19,0.00018356,2]
[423636227,1780267847000,-692.04,0.00018356,2]
[423636238,1780267847000,-669.27,0.00018356,2]
[423636241,1780267847000,-500.0,0.00018356,2]
[423636222,1780267847000,-1167.41,0.00018356,2]
[423636243,1780267847000,-659.02,0.00018356,2]
[423636388,1780267848000,-2118.27,0.00019452,2]
[423636386,1780267848000,-659.02,0.00019452,2]
[423636402,1780267848000,-1383.06441487,0.00019531,112]
[423636390,1780267848000,-637.9,0.00019452,2]
[423636366,1780267848000,-1005.45,0.00019452,2]
[423636378,1780267848000,-698.5,0.00019452,2]
[423636380,1780267848000,-669.27,0.00019452,2]
[423636381,1780267848000,-915.19,0.00019452,2]
[423636368,1780267848000,-692.04,0.00019452,2]
[423636400,1780267848000,-1198.42112619,0.00019452,2]
[423636383,1780267848000,-561.68,0.00019452,2]
[423636396,1780267848000,-1011.11887381,0.00019452,2]
[423636425,1780267848000,-177.33604,0.00019726,2]
[423636394,1780267848000,-502.52,0.00019452,2]
[423636406,1780267848000,-151.0,0.00019531,2]
[423636404,1780267848000,-167.91261752,0.00019531,112]
[423636410,1780267848000,-1167.41,0.00019726,2]
[423636427,1780267848000,-177.33604,0.00019726,2]
[423636424,1780267848000,-177.33604,0.00019726,2]
[423636412,1780267848000,-692.098468,0.00019726,2]
[423636408,1780267848000,-300.0,0.00019589,3]
[423636416,1780267848000,-692.098468,0.00019726,2]
[423636414,1780267848000,-692.098468,0.00019726,2]
[423636420,1780267848000,-1005.45,0.00019726,2]
[423636365,1780267848000,-1167.41,0.00019452,2]
[423636392,1780267848000,-10390.67,0.00019452,2]
[423636375,1780267848000,-500.0,0.00019452,2]
[423636329,1780267848000,-1005.45,0.00019178,2]
[423636360,1780267848000,-319.444823,0.00019452,2]
[423636315,1780267848000,-2118.27,0.00018904,2]
[423636316,1780267848000,-637.9,0.00018904,2]
[423636327,1780267848000,-1167.41,0.00019178,2]
[423636325,1780267848000,-264.47743139,0.0001908,2]
[423636322,1780267848000,-2209.54,0.00018904,2]
[423636318,1780267848000,-10390.67,0.00018904,2]
[423636331,1780267848000,-692.04,0.00019178,2]
[423636337,1780267848000,-669.27,0.00019178,2]
[423636335,1780267848000,-698.5,0.00019178,2]
[423636313,1780267848000,-659.02,0.00018904,2]
[423636323,1780267848000,-1613.0,0.00018912,2]
[423636320,1780267848000,-502.52,0.00018904,2]
[423636350,1780267848000,-502.52,0.00019178,2]
[423636333,1780267848000,-500.0,0.00019178,2]
[423636338,1780267848000,-915.19,0.00019178,2]
[423636340,1780267848000,-500.0,0.00019178,2]
[423636358,1780267848000,-319.444823,0.00019452,2]
[423636363,1780267848000,-319.444823,0.00019452,2]
[423636348,1780267848000,-10390.67,0.00019178,2]
[423636346,1780267848000,-637.9,0.00019178,2]
[423636344,1780267848000,-2118.27,0.00019178,2]
[423636354,1780267848000,-151.0,0.00019178,2]
[423636356,1780267848000,-151.0,0.00019178,2]
[423636352,1780267848000,-2209.54,0.00019178,2]
[423636342,1780267848000,-659.02,0.00019178,2]
[423636362,1780267848000,-319.444823,0.00019452,2]
[423636418,1780267848000,-692.098468,0.00019726,2]
[423636429,1780267848000,-177.33604,0.00019726,2]
[423636422,1780267848000,-692.04,0.00019726,2]
[423636433,1780267848000,-698.5,0.00019726,2]
[423636494,1780267848000,-637.96,0.0002,2]
[423636499,1780267848000,-2209.65901061,0.0002,2]
[423636487,1780267848000,-669.41,0.0002,2]
[423636501,1780267848000,-1414.0,0.00020392,2]
[423636498,1780267848000,-502.72,0.0002,2]
[423636491,1780267848000,-659.23487503,0.0002,2]
[423636503,1780267848000,-648.0,0.00020392,2]
[423636492,1780267848000,-2118.28477013,0.0002,2]
[423636507,1780267848000,-2205.0,0.00020392,2]
[423636508,1780267848000,-1000.0,0.00020452,2]
[423636528,1780267848000,-150.28468433,0.00018091,2]
[423636530,1780267848000,-5371.47696535,0.000208,30]
[423636514,1780267848000,-1561.54840259,0.00020603,119]
[423636522,1780267848000,-15140.3754465,0.000208,30]
[423636518,1780267848000,-217.0,0.00020764,2]
[423636524,1780267848000,-6423.94677741,0.000208,30]
[423636532,1780267848000,-632.9392037,0.000208,30]
[423636431,1780267848000,-162.75866087,0.00019726,2]
[423636516,1780267848000,-6823.58483052,0.000207,2]
[423636519,1780267848000,-151.55000802,0.00020773,2]
[423636546,1780267848000,-267.75928911,0.00014751,2]
[423636534,1780267848000,-684.83955268,0.00014751,2]
[423636544,1780267848000,-1530.00043292,0.00014751,2]
[423636548,1780267848000,-4905.71010121,0.000208,30]
[423636542,1780267848000,-1585.68992899,0.00014751,2]
[423636539,1780267848000,-446.0,0.00014751,2]
[423636536,1780267848000,-485.7107963,0.00014751,2]
[423636489,1780267848000,-915.33,0.0002,2]
[423636510,1780267848000,-244.0,0.00020452,2]
[423636512,1780267848000,-151.47,0.00020548,2]
[423636496,1780267848000,-10390.79633753,0.0002,2]
[423636505,1780267848000,-1792.136,0.00020392,2]
[423636441,1780267848000,-336.71315513,0.00019726,2]
[423636439,1780267848000,-578.47684487,0.00019726,2]
[423636437,1780267848000,-93.30252348,0.00019726,2]
[423636445,1780267848000,-647.36481334,0.00019726,2]
[423636435,1780267848000,-575.96747652,0.00019726,2]
[423636443,1780267848000,-11.65518666,0.00019726,2]
[423636453,1780267848000,-7708.32270233,0.00019726,2]
[423636451,1780267848000,-2682.34729767,0.00019726,2]
[423636447,1780267848000,-2118.27,0.00019726,2]
[423636457,1780267848000,-2209.54,0.00019726,2]
[423636455,1780267848000,-502.52,0.00019726,2]
[423636463,1780267848000,-151.0,0.0002,2]
[423636449,1780267848000,-637.9,0.00019726,2]
[423636467,1780267848000,-151.0,0.0002,2]
[423636484,1780267848000,-698.7,0.0002,2]
[423636483,1780267848000,-300.0,0.0002,4]
[423636475,1780267848000,-205.12727437,0.0002,2]
[423636459,1780267848000,-227.76405118,0.000198,2]
[423636474,1780267848000,-151.0,0.0002,2]
[423636472,1780267848000,-151.0,0.0002,2]
[423636481,1780267848000,-692.23,0.0002,2]
[423636461,1780267848000,-284.8116,0.000198,2]
[423636470,1780267848000,-151.0,0.0002,2]
[423636477,1780267848000,-1167.41587772,0.0002,2]
[423636479,1780267848000,-1005.61227406,0.0002,2]
[423636465,1780267848000,-151.0,0.0002,2]
[423636586,1780267849000,-151.0,0.00020831,2]
[423636605,1780267849000,-3000.0,0.0002103,2]
[423636588,1780267849000,-151.0,0.00020831,2]
[423636615,1780267849000,-3000.0,0.0002108,2]
[423636611,1780267849000,-3000.0,0.0002106,2]
[423636613,1780267849000,-3000.0,0.0002107,2]
[423636603,1780267849000,-3000.0,0.0002102,2]
[423636607,1780267849000,-3000.0,0.0002104,2]
[423636637,1780267849000,-319.444823,0.0002113,2]
[423636623,1780267849000,-455.59,0.000211,2]
[423636617,1780267849000,-3000.0,0.0002109,2]
[423636619,1780267849000,-331.31,0.000211,2]
[423636621,1780267849000,-445.0713,0.000211,2]
[423636625,1780267849000,-3000.0,0.000211,2]
[423636627,1780267849000,-151.47,0.000211,2]
[423636634,1780267849000,-3000.0,0.0002113,2]
[423636601,1780267849000,-3000.0,0.0002101,2]
[423636609,1780267849000,-3000.0,0.0002105,2]
[423636590,1780267849000,-169.090631,0.00020831,2]
[423636574,1780267849000,-151.0,0.000208,2]
[423636592,1780267849000,-461.0,0.00020831,120]
[423636633,1780267849000,-3000.0,0.0002112,2]
[423636552,1780267849000,-3725.0,0.000208,30]
[423636554,1780267849000,-2966.37331664,0.000208,30]
[423636570,1780267849000,-271.084196,0.000208,2]
[423636578,1780267849000,-151.0,0.000208,2]
[423636560,1780267849000,-151.0,0.000208,2]
[423636566,1780267849000,-271.084196,0.000208,2]
[423636556,1780267849000,-756.85469116,0.000208,30]
[423636572,1780267849000,-271.084196,0.000208,2]
[423636564,1780267849000,-151.0,0.000208,2]
[423636568,1780267849000,-271.084196,0.000208,2]
[423636576,1780267849000,-151.0,0.000208,2]
[423636559,1780267849000,-60077.32349803,0.000208,30]
[423636562,1780267849000,-151.0,0.000208,2]
[423636594,1780267849000,-151.0,0.00020852,4]
[423636598,1780267849000,-3000.0,0.00021,2]
[423636584,1780267849000,-151.0,0.000208,2]
[423636596,1780267849000,-151.0,0.00020872,6]
[423636636,1780267849000,-319.444823,0.0002113,2]
[423636671,1780267849000,-3000.0,0.0002119,2]
[423636629,1780267849000,-3000.0,0.0002111,2]
[423636680,1780267849000,-3000.0,0.0002124,2]
[423636682,1780267849000,-3000.0,0.0002125,2]
[423636684,1780267849000,-3000.0,0.0002126,2]
[423636688,1780267849000,-3000.0,0.0002128,2]
[423636692,1780267849000,-151.0,0.0002129,2]
[423636686,1780267849000,-3000.0,0.0002127,2]
[423636690,1780267849000,-3000.0,0.0002129,2]
[423636696,1780267849000,-151.0,0.0002129,2]
[423636703,1780267849000,-3000.0,0.0002131,2]
[423636700,1780267849000,-151.0,0.0002129,2]
[423636698,1780267849000,-151.0,0.0002129,2]
[423636702,1780267849000,-3000.0,0.000213,2]
[423636705,1780267849000,-3000.0,0.0002132,2]
[423636707,1780267849000,-3000.0,0.0002133,2]
[423636709,1780267849000,-883.71774459,0.0002134,2]
[423636711,1780267849000,-494.293216,0.0002134,2]
[423636631,1780267849000,-179.03672971,0.0002111,2]
[423636678,1780267849000,-3000.0,0.0002123,2]
[423636677,1780267849000,-3000.0,0.0002122,2]
[423636694,1780267849000,-151.0,0.0002129,2]
[423636673,1780267849000,-3000.0,0.000212,2]
[423636641,1780267849000,-319.444823,0.0002113,2]
[423636643,1780267849000,-3000.0,0.0002114,2]
[423636645,1780267849000,-3000.0,0.0002115,2]
[423636647,1780267849000,-154.857557,0.0002115,2]
[423636649,1780267849000,-3000.0,0.0002116,2]
[423636651,1780267849000,-3000.0,0.0002117,2]
[423636663,1780267849000,-177.33604,0.0002118,2]
[423636655,1780267849000,-692.098468,0.0002118,2]
[423636639,1780267849000,-319.444823,0.0002113,2]
[423636665,1780267849000,-177.33604,0.0002118,2]
[423636657,1780267849000,-692.098468,0.0002118,2]
[423636659,1780267849000,-692.098468,0.0002118,2]
[423636669,1780267849000,-177.336049,0.0002118,2]
[423636653,1780267849000,-3000.0,0.0002118,2]
[423636667,1780267849000,-177.33604,0.0002118,2]
[423636661,1780267849000,-692.098477,0.0002118,2]
[423636713,1780267849000,-351.92062858,0.0002134,2]
[423636675,1780267849000,-3000.0,0.0002121,2]
[423637696,1780268399000,5000.0,0.00020777,30]
[423637697,1780268432000,5000.0,0.00020777,30]
[423637699,1780268843000,-198.71719637,0.0001356,2]
[423637713,1780269032000,-500.0,0.00013698,2]
[423637711,1780269032000,-300.0,0.00013697,2]
[423637710,1780269032000,-261.0,0.00013697,2]
[423637712,1780269032000,-378.0,0.00013697,2]
[423637709,1780269032000,-151.0,0.00013153,2]
[423637708,1780269032000,-5000.0,0.00013022,2]
[423637734,1780269033000,-500.0,0.00014243,2]
[423637732,1780269033000,-300.0,0.00013971,2]
[423637733,1780269033000,-300.0,0.00013971,2]
[423637722,1780269033000,-300.0,0.00013971,2]
[423637720,1780269033000,-300.0,0.00013971,2]
[423637715,1780269033000,-500.0,0.00013698,2]
[423637716,1780269033000,-500.0,0.0001397,2]
[423637718,1780269033000,-300.0,0.00013971,2]
[423637717,1780269033000,-300.0,0.00013971,2]
[423637726,1780269033000,-300.0,0.00013971,2]
[423637714,1780269033000,-500.0,0.00013698,2]
[423637727,1780269033000,-300.0,0.00013971,2]
[423637719,1780269033000,-300.0,0.00013971,2]
[423637731,1780269033000,-300.0,0.00013971,2]
[423637742,1780269033000,-22.15169623,0.00014243,2]
[423637741,1780269033000,-500.0,0.00014243,2]
[423637737,1780269033000,-363.45725568,0.00014243,2]
[423637739,1780269033000,-423.44657588,0.00014243,2]
[423637740,1780269033000,-76.55342412,0.00014243,2]
[423637736,1780269033000,-136.54274432,0.00014243,2]
[423637725,1780269033000,-300.0,0.00013971,2]
[423637735,1780269033000,-500.0,0.00014243,2]
[423637728,1780269033000,-300.0,0.00013971,2]
[423637729,1780269033000,-300.0,0.00013971,2]
[423637724,1780269033000,-300.0,0.00013971,2]
[423637730,1780269033000,-300.0,0.00013971,2]
[423637738,1780269033000,-500.0,0.00014243,2]
[423637771,1780269038000,-477.84830377,0.00014243,2]
[423637773,1780269038000,-500.0,0.00014243,2]
[423637772,1780269038000,-500.0,0.00014243,2]
[423637775,1780269038000,-500.0,0.00014243,2]
[423637776,1780269038000,-371.95769653,0.00014243,2]
[423637774,1780269038000,-500.0,0.00014243,2]
[423637778,1780269041000,-128.04230347,0.00014243,2]
[423637777,1780269041000,-835.91665979,0.00014101,2]
[423637779,1780269041000,-495.20463364,0.00014243,2]
[423637780,1780269041000,-573.19801109,0.00014243,2]
[423637781,1780269041000,-500.0,0.00014243,2]
[423637782,1780269041000,-28.34590627,0.00014243,2]
[423637784,1780269041000,-500.0,0.00014243,2]
[423637787,1780269041000,-600.0,0.00014249,2]
[423637786,1780269041000,-338.04,0.00014243,2]
[423637785,1780269041000,-500.0,0.00014243,2]
[423637788,1780269041000,-258.2616663,0.00014517,2]
[423637792,1780269041000,-800.82014179,0.00016555,2]
[423637790,1780269041000,-491.32,0.00014791,2]
[423637789,1780269041000,-500.0,0.00014517,2]
[423637783,1780269041000,-471.65409373,0.00014243,2]
[423637791,1780269041000,-720.0,0.00015674,2]
[423637844,1780269047000,-462.0,0.0002,2]
[423637839,1780269047000,-199.17985821,0.00016555,2]
[423637841,1780269047000,-358.54316973,0.00017037,2]
[423637840,1780269047000,-116.89983027,0.00017037,2]
[423637851,1780269047000,-154.71915605,0.000209,2]
[423637848,1780269047000,-151.0,0.00020777,6]
[423637842,1780269047000,-864.0,0.00017242,2]
[423637845,1780269047000,-462.0,0.00020388,30]
[423637847,1780269047000,-462.0,0.00020777,120]
[423637853,1780269047000,-1146.79877874,0.00020928,2]
[423637854,1780269047000,-10121.24489997,0.00020928,2]
[423637852,1780269047000,-892.5475653,0.00020928,2]
[423637843,1780269047000,-1000.0,0.00018966,2]
[423637846,1780269047000,-151.47,0.00020548,2]
[423637849,1780269047000,-1000.0,0.00020863,2]
[423637850,1780269047000,-244.0,0.00020863,2]
[423637858,1780269733000,200.0,0.00020784,120]
[423637859,1780269734000,192562.81038763,7.6e-05,2]
[423637881,1780270232000,-86.98942498,0.00017661,2]
[423637871,1780270232000,-5000.0,9.688e-05,2]
[423637884,1780270232000,-167.3239822,0.00017661,2]
[423637886,1780270232000,-300.0,0.0001858,2]
[423637875,1780270232000,-151.0,0.00010088,2]
[423637877,1780270232000,-151.0,0.00010505,2]
[423637879,1780270232000,-200.0,0.00016438,2]
[423637891,1780270232000,-262.32078478,0.00018581,2]
[423637893,1780270232000,-566.28921522,0.00018581,2]
[423637873,1780270232000,-151.0,9.785e-05,2]
[423637888,1780270232000,-867.05099619,0.00018581,2]
[423637958,1780270238000,-1000.0,0.00018581,2]
[423637956,1780270238000,-1764.89900381,0.00018581,2]
[423637960,1780270238000,-123.76949674,0.0002,2]
[423637998,1780270239000,-500.0,0.00020899,2]
[423637994,1780270239000,-500.0,0.00020899,2]
[423637988,1780270239000,-500.0,0.00020899,2]
[423638000,1780270239000,-500.0,0.00020899,2]
[423637986,1780270239000,-500.0,0.00020899,2]
[423638002,1780270239000,-500.0,0.00020899,2]
[423637984,1780270239000,-500.0,0.00020899,2]
[423637983,1780270239000,-426.14096438,0.00020899,2]
[423637981,1780270239000,-393.0,0.00020784,120]
[423637976,1780270239000,-151.0,0.00020777,6]
[423637972,1780270239000,-393.0,0.00020392,30]
[423637968,1780270239000,-190.498,0.00020322,2]
[423637966,1780270239000,-2205.0,0.00020322,2]
[423637970,1780270239000,-444.0,0.00020322,2]
[423637974,1780270239000,-151.47,0.00020548,2]
[423637963,1780270239000,-269.23050326,0.0002,2]
[423637964,1780270239000,-300.0,0.00020261,2]
[423637979,1780270239000,-151.0,0.00020784,6]
[423637996,1780270239000,-282.38377973,0.00020899,2]
[423637990,1780270239000,-500.0,0.00020899,2]
[423638039,1780270239000,-560.78235578,0.00020938,2]
[423637992,1780270239000,-500.0,0.00020899,2]
[423638037,1780270239000,-1760.86574786,0.00020938,2]
[423638031,1780270239000,-500.0,0.00020899,2]
[423638033,1780270239000,-500.0,0.00020899,2]
[423638034,1780270239000,-380.354,0.000209,2]
[423638027,1780270239000,-500.0,0.00020899,2]
[423638025,1780270239000,-500.0,0.00020899,2]
[423638023,1780270239000,-500.0,0.00020899,2]
[423638019,1780270239000,-500.0,0.00020899,2]
[423638029,1780270239000,-500.0,0.00020899,2]
[423638010,1780270239000,-500.0,0.00020899,2]
[423638017,1780270239000,-500.0,0.00020899,2]
[423638015,1780270239000,-500.0,0.00020899,2]
[423638013,1780270239000,-500.0,0.00020899,2]
[423638007,1780270239000,-500.0,0.00020899,2]
[423638009,1780270239000,-500.0,0.00020899,2]
[423638005,1780270239000,-528.05319948,0.00020899,2]
[423638003,1780270239000,-500.0,0.00020899,2]
[423638021,1780270239000,-500.0,0.00020899,2]
[423638205,1780270240000,-861.73439626,0.00020938,2]
[423638297,1780270241000,-500.0,0.00020939,2]